fUSD/lending_fUSD_20241122
["ID","MTS","AMOUNT","RATE_DAILY","PERIOD"]
[343044997,1732309832958,-997.15,0.00089648,120]
[343044999,1732309832968,-250.0,0.00089655,120]
[343045001,1732309832978,-267.11,0.000897,120]
[343045003,1732309832988,-500.0,0.00089713,120]
[343045005,1732309832998,-500.0,0.00089713,120]
[343045007,1732309833008,-500.0,0.00089713,120]
[343045009,1732309833019,-17715.4683566,0.00089714,13]
[343045011,1732309833030,-25000.0,0.00089724,120]
[343045013,1732309833039,-318.41,0.00089745,120]
[343045015,1732309833050,-159.92,0.0008976,120]
[343045017,1732309833059,-500.0,0.00089781,120]
[343045019,1732309833069,-500.0,0.00089781,120]
[343045021,1732309833080,-500.0,0.00089781,120]
[343045023,1732309833090,-500.0,0.00089781,120]
[343045025,1732309833101,-271.02658697,0.00089781,120]
[343045027,1732309833111,-500.0,0.00089781,120]
[343045029,1732309833121,-500.0,0.00089781,120]
[343045031,1732309833131,-500.0,0.00089781,120]
[343045033,1732309833140,-500.0,0.00089781,120]
[343045034,1732309833150,-5000.0,0.00089782,120]
[343045036,1732309833160,-3014.31,0.00089804,120]
[343045038,1732309833170,-5000.0,0.00089805,120]
[343045039,1732309833180,-150.83,0.00089808,120]
[343045040,1732309833189,-4120.86,0.00089816,120]
[343045041,1732309833200,-2565.43,0.00089865,120]
[343045042,1732309833210,-336.57832002,0.000899,120]
[343045043,1732309833219,-1504.1,0.0008992,120]
[343045044,1732309833229,-498.37,0.00089926,120]
[343045045,1732309833239,-5000.0,0.00089978,120]
[343045046,1732309833249,-87511.4558083,0.0008998,11]
[343045047,1732309833259,-150.98,0.0008998,120]
[343045048,1732309833269,-500.0,0.00089989,120]
[343045049,1732309833279,-500.0,0.00089989,120]
[343045050,1732309833289,-500.0,0.00089989,120]
[343045051,1732309833403,-500.0,0.00089989,120]
[343045052,1732309833414,-500.0,0.00089989,120]
[343045054,1732309833425,-500.0,0.00089989,120]
[343045055,1732309833434,-500.0,0.00089989,120]
[343045056,1732309833444,-500.0,0.00089989,120]
[343045057,1732309833454,-500.0,0.00089989,120]
[343045058,1732309833464,-500.0,0.00089989,120]
[343045059,1732309833475,-500.0,0.00089989,120]
[343045060,1732309833485,-500.0,0.00089989,120]
[343045061,1732309833494,-500.0,0.00089989,120]
[343045062,1732309833504,-500.0,0.00089989,120]
[343045063,1732309833513,-500.0,0.00089989,120]
[343045064,1732309833524,-500.0,0.00089989,120]
[343045065,1732309833534,-500.0,0.00089989,120]
[343045066,1732309833543,-500.0,0.00089989,120]
[343045067,1732309833553,-301162.962062,0.0008999,13]
[343045068,1732309833563,-237531.094337,0.0008999,11]
[343045069,1732309833573,-250.0,0.00089996,120]
[343045070,1732309833583,-1000.0,0.00089996,120]
[343045071,1732309833592,-323.04,0.00089996,120]
[343045072,1732309833602,-250.0,0.00089996,120]
[343045073,1732309833615,-2000.0,0.00089996,120]
[343045074,1732309833626,-500.0,0.00089998,120]
[343045075,1732309833636,-500.0,0.00089998,120]
[343045076,1732309833646,-500.0,0.00089999,120]
[343045077,1732309833657,-392.44569269,0.00089999,120]
[343045078,1732309833666,-500.0,0.00089999,120]
[343045079,1732309833676,-500.0,0.00089999,120]
[343045080,1732309833686,-500.0,0.00089999,120]
[343045081,1732309833695,-500.0,0.00089999,120]
[343045082,1732309833705,-500.0,0.00089999,120]
[343045083,1732309833715,-500.0,0.00089999,120]
[343045084,1732309833725,-500.0,0.00089999,120]
[343045085,1732309833734,-500.0,0.00089999,120]
[343045086,1732309833743,-500.0,0.00089999,120]
[343045087,1732309833753,-23500.46107689,0.00089999,18]
[343045088,1732309833763,-500.0,0.00089999,120]
[343045089,1732309833772,-500.0,0.00089999,120]
[343045090,1732309833782,-500.0,0.00089999,120]
[343045091,1732309833792,-500.0,0.00089999,120]
[343045092,1732309833802,-500.0,0.00089999,120]
[343045093,1732309833812,-500.0,0.00089999,120]
[343045094,1732309833821,-500.0,0.00089999,120]
[343045095,1732309833831,-500.0,0.00089999,120]
[343045096,1732309833842,-500.0,0.00089999,120]
[343045097,1732309833852,-500.0,0.00089999,120]
[343045098,1732309833863,-70297.98780543,0.0009,2]
[343045099,1732309833873,-270093.79218338,0.0009,30]
[343045100,1732309833891,-1891.6721946,0.0009,30]
[343045101,1732309833902,-18501.15294864,0.0009,30]
[343045102,1732309833914,-988.3344858,0.0009,30]
[343045103,1732309833926,-9862.59999999,0.0009,30]
[343045104,1732309833970,-89.45588682,0.0009,30]
[343045105,1732309833983,-44115.69475159,0.0009,30]
[343045106,1732309833996,-72297.70204063,0.0009,30]
[343045107,1732309834012,-500.0,0.00086656,120]
[343045108,1732309834025,-10319.32788082,0.0009,30]
[343045109,1732309834038,-4492.7795339,0.0009,30]
[343045110,1732309834050,-6264.03733797,0.0009,30]
[343045111,1732309834067,-500.0,0.00089989,120]
[343045112,1732309834076,-3604.72047646,0.0009,30]
[343045113,1732309835418,-500.0,0.00089979,120]
[343045114,1732309835428,-66322.08783341,0.0009,30]
[343045115,1732309835438,-54465.9,0.0009001,7]
[343045116,1732309835447,-5018.0,0.000901,7]
[343045117,1732309835457,-309.3384,0.0009012,2]
[343045118,1732309835467,-402.43743228,0.00090124,28]
[343045119,1732309835477,-152.0,0.00090186,5]
[343045120,1732309835486,-35430.9367131,0.0009021,13]
[343045121,1732309835496,-164.7,0.00090231,120]
[343045122,1732309835505,-227.23960018,0.0009031,61]
[343045123,1732309835514,-383.5355,0.0009031,2]
[343045124,1732309835524,-759.9916,0.0009031,120]
[343045125,1732309835533,-1216.3044,0.0009031,120]
[343045126,1732309835543,-380.47470734,0.00090319,20]
[343045127,1732309835555,-150.0,0.00090403,120]
[343045128,1732309835564,-500.0,0.00090409,120]
[343045129,1732309835574,-500.0,0.00090409,120]
[343045130,1732309835584,-500.0,0.00090409,120]
[343045131,1732309835594,-500.0,0.00090409,120]
[343045132,1732309835605,-500.0,0.00090409,120]
[343045133,1732309835614,-500.0,0.00090409,120]
[343045134,1732309835624,-64591.2492589,0.0009041,2]
[343045135,1732309835634,-27661.21647104,0.0009041,2]
[343045136,1732309835644,-175.39483121,0.0009041,30]
[343045137,1732309835654,-188.078,0.00090419,120]
[343045138,1732309835663,-263.7786,0.0009042,2]
[343045139,1732309835673,-8872.06760387,0.0009048,15]
[343045140,1732309835682,-703.06483094,0.00090497,15]
[343045141,1732309835691,-185.11,0.00090578,60]
[343045142,1732309835701,-924.62,0.00090611,7]
[343045143,1732309835711,-1100.0,0.000907,33]
[343045144,1732309835721,-2300.0,0.000908,33]
[343045145,1732309835730,-217.205,0.00090811,2]
[343045146,1732309835827,-3500.0,0.000909,33]
[343045147,1732309835838,-1000.0,0.00090911,120]
[343045148,1732309835847,-491.3028,0.00091018,60]
[343045149,1732309835858,-3523.6017,0.00091018,120]
[343045150,1732309835868,-415.9778,0.00091018,2]
[343045151,1732309835877,-898.9709,0.00091018,30]
[343045152,1732309835887,-3399.8646,0.00091018,120]
[343045153,1732309835896,-2294.3498,0.00091108,120]
[343045154,1732309835905,-2500.0,0.00091108,30]
[343045155,1732309835915,-4692.8265,0.00091118,120]
[343045156,1732309835924,-2217.5112,0.00091118,120]
[343045157,1732309835935,-10737.7069,0.00091118,120]
[343045158,1732309835948,-9933.3051,0.00091118,120]
[343045159,1732309835958,-5627.1859,0.00091118,120]
[343045160,1732309835967,-4136.239,0.00091118,31]
[343045161,1732309835977,-335.9469,0.00091118,120]
[343045162,1732309835987,-3445.0553,0.00091118,30]
[343045163,1732309835996,-500.0,0.00091119,120]
[343045164,1732309836005,-359.92838969,0.00091154,120]
[343045165,1732309836015,-1738.26564796,0.00091198,120]
[343045166,1732309836027,-500.0,0.000912,120]
[343045167,1732309836036,-250.0,0.000912,30]
[343045168,1732309836045,-250.0,0.000912,30]
[343045169,1732309836055,-250.0,0.000912,30]
[343045170,1732309836064,-250.0,0.000912,30]
[343045171,1732309836073,-250.0,0.000912,30]
[343045172,1732309836083,-250.0,0.000912,30]
[343045173,1732309836092,-250.0,0.000912,30]
[343045174,1732309836102,-250.0,0.000912,30]
[343045175,1732309836113,-250.0,0.000912,30]
[343045176,1732309836122,-250.0,0.000912,30]
[343045177,1732309836132,-250.0,0.000912,30]
[343045178,1732309836141,-250.0,0.000912,30]
[343045179,1732309836151,-250.0,0.000912,30]
[343045180,1732309836160,-250.0,0.000912,30]
[343045181,1732309836170,-250.0,0.000912,30]
[343045182,1732309836179,-250.0,0.000912,30]
[343045183,1732309836188,-250.0,0.000912,30]
[343045184,1732309836198,-250.0,0.000912,30]
[343045185,1732309836207,-250.0,0.000912,30]
[343045186,1732309836217,-250.0,0.000912,30]
[343045187,1732309836226,-250.0,0.000912,30]
[343045188,1732309836236,-250.0,0.000912,30]
[343045189,1732309836245,-250.0,0.000912,30]
[343045190,1732309836255,-250.0,0.000912,30]
[343045191,1732309836264,-250.0,0.000912,30]
[343045192,1732309836274,-2094.60718497,0.00091207,120]
[343045193,1732309836283,-500.0,0.00091207,120]
[343045194,1732309836293,-500.0,0.00091207,120]
[343045195,1732309836303,-500.0,0.00091207,120]
[343045196,1732309836313,-500.0,0.00091207,120]
[343045197,1732309836322,-500.0,0.00091207,120]
[343045198,1732309836332,-500.0,0.00091207,120]
[343045199,1732309836340,-655.89,0.00091207,120]
[343045200,1732309836351,-500.0,0.00091207,120]
[343045201,1732309836361,-500.0,0.00091207,120]
[343045202,1732309836370,-705.87,0.00091207,120]
[343045203,1732309836380,-500.0,0.00091207,120]
[343045204,1732309836390,-2547.72,0.00091207,120]
[343045205,1732309836401,-500.0,0.00091207,120]
[343045206,1732309836410,-500.0,0.00091216,120]
[343045207,1732309836420,-553.61,0.00091216,120]
[343045208,1732309836430,-355.4375,0.00091216,120]
[343045209,1732309836440,-500.0,0.00091216,120]
[343045210,1732309836449,-500.0,0.00091216,120]
[343045211,1732309836459,-500.0,0.00091216,120]
[343045212,1732309836468,-500.0,0.00091216,120]
[343045213,1732309836478,-500.0,0.00091216,120]
[343045214,1732309836488,-500.0,0.00091216,120]
[343045215,1732309836498,-674.66,0.00091216,120]
[343045216,1732309836508,-500.0,0.00091216,21]
[343045217,1732309836518,-500.0,0.00091216,120]
[343045218,1732309836527,-500.0,0.00091216,120]
[343045219,1732309836537,-5930.46,0.00091216,120]
[343045220,1732309836547,-500.0,0.00091216,120]
[343045221,1732309836556,-500.0,0.00091216,120]
[343045222,1732309836567,-500.0,0.00091216,120]
[343045223,1732309836576,-500.0,0.00091216,120]
[343045224,1732309836587,-500.0,0.00091216,120]
[343045225,1732309836596,-500.0,0.00091216,120]
[343045226,1732309836607,-500.0,0.00091216,120]
[343045227,1732309836616,-500.0,0.00091216,120]
[343045228,1732309836625,-500.0,0.00091216,120]
[343045229,1732309836635,-500.0,0.00091216,120]
[343045230,1732309836644,-500.0,0.00091216,120]
[343045231,1732309836654,-500.0,0.00091216,120]
[343045232,1732309836664,-1572.33,0.00091216,120]
[343045233,1732309836672,-1500.0,0.00091216,120]
[343045234,1732309836681,-629.88,0.00091216,120]
[343045235,1732309836690,-655.89,0.00091216,120]
[343045236,1732309836698,-500.0,0.00091216,120]
[343045237,1732309836707,-500.0,0.00091216,120]
[343045238,1732309836717,-500.0,0.00091216,120]
[343045239,1732309836727,-500.0,0.00091216,120]
[343045240,1732309836736,-500.0,0.00091216,120]
[343045241,1732309836745,-500.0,0.00091216,120]
[343045242,1732309836754,-500.0,0.00091216,120]
[343045243,1732309836764,-705.87,0.00091216,120]
[343045244,1732309836772,-500.0,0.00091216,120]
[343045245,1732309836781,-500.0,0.00091216,120]
[343045246,1732309836792,-500.0,0.00091216,120]
[343045247,1732309836801,-500.0,0.00091216,120]
[343045248,1732309836810,-500.0,0.00091216,7]
[343045249,1732309836818,-2547.72,0.00091216,120]
[343045250,1732309836827,-500.0,0.00091216,120]
[343045251,1732309836836,-500.0,0.00091216,120]
[343045252,1732309836845,-319.11,0.00091216,120]
[343045253,1732309836855,-500.0,0.00091216,120]
[343045254,1732309836864,-500.0,0.00091216,120]
[343045255,1732309836873,-500.0,0.00091216,120]
[343045256,1732309836882,-500.0,0.00091216,120]
[343045257,1732309836891,-500.0,0.00091217,120]
[343045258,1732309836900,-500.0,0.00091217,120]
[343045259,1732309836909,-500.0,0.00091217,120]
[343045260,1732309836918,-450.0,0.00091217,120]
[343045261,1732309836927,-500.0,0.00091217,120]
[343045262,1732309836937,-500.0,0.00091217,120]
[343045263,1732309836950,-500.0,0.00091217,120]
[343045264,1732309836959,-500.0,0.00091217,120]
[343045265,1732309836968,-500.0,0.00091217,120]
[343045266,1732309836977,-500.0,0.00091217,120]
[343045267,1732309836987,-500.0,0.00091217,120]
[343045268,1732309836996,-500.0,0.00091217,120]
[343045269,1732309837005,-500.0,0.00091217,120]
[343045270,1732309837014,-500.0,0.00091217,120]
[343045271,1732309837025,-500.0,0.00091217,120]
[343045272,1732309837035,-500.0,0.00091217,120]
[343045273,1732309837044,-500.0,0.00091217,120]
[343045274,1732309837052,-500.0,0.00091217,120]
[343045275,1732309837061,-500.0,0.00091217,120]
[343045276,1732309837070,-500.96978675,0.00091217,120]
[343045277,1732309837080,-500.0,0.00091217,120]
[343045278,1732309837089,-500.0,0.00091217,120]
[343045279,1732309837097,-500.0,0.00091217,120]
[343045280,1732309837108,-500.0,0.00091217,120]
[343045281,1732309837115,-500.0,0.00091217,120]
[343045282,1732309837122,-500.0,0.00091217,120]
[343045283,1732309837128,-500.0,0.00091217,120]
[343045284,1732309837137,-500.0,0.00091217,120]
[343045285,1732309837144,-510.79669263,0.00091217,120]
[343045286,1732309837154,-500.0,0.00091217,120]
[343045287,1732309837164,-500.0,0.00091217,120]
[343045288,1732309837174,-500.0,0.00091217,120]
[343045289,1732309837183,-502.0339624,0.00091217,120]
[343045290,1732309837193,-500.0,0.00091217,120]
[343045291,1732309837202,-500.0,0.00091217,120]
[343045292,1732309837212,-588.74088198,0.00091217,120]
[343045293,1732309837221,-500.0,0.00091217,120]
[343045294,1732309837230,-500.0,0.00091217,120]
[343045295,1732309837240,-500.0,0.00091217,120]
[343045296,1732309837249,-500.0,0.00091217,120]
[343045297,1732309837259,-500.0,0.00091217,120]
[343045298,1732309837269,-500.0,0.00091217,120]
[343045299,1732309837278,-500.0,0.00091217,120]
[343045300,1732309837287,-500.0,0.00091217,120]
[343045301,1732309837297,-500.0,0.00091217,120]
[343045302,1732309837307,-500.0,0.00091217,120]
[343045303,1732309837317,-238.04025932,0.00091217,120]
[343045304,1732309837327,-500.0,0.00091217,120]
[343045305,1732309837336,-500.0,0.00091217,120]
[343045306,1732309837346,-500.0,0.00091217,120]
[343045307,1732309837358,-500.0,0.00091217,120]
[343045308,1732309837368,-500.0,0.00091217,120]
[343045309,1732309837379,-500.0,0.00091217,120]
[343045310,1732309837388,-500.0,0.00091217,120]
[343045311,1732309837398,-500.0,0.00091217,120]
[343045312,1732309837407,-500.0,0.00091217,120]
[343045313,1732309837417,-500.0,0.00091217,120]
[343045314,1732309837426,-500.0,0.00091217,120]
[343045315,1732309837436,-500.0,0.00091217,120]
[343045316,1732309837446,-500.0,0.00091217,120]
[343045317,1732309837456,-500.0,0.00091217,120]
[343045318,1732309837466,-500.0,0.00091217,120]
[343045319,1732309837475,-500.71944398,0.00091217,120]
[343045320,1732309837490,-500.0,0.00091217,120]
[343045321,1732309837499,-500.0,0.00091217,120]
[343045322,1732309837509,-500.0,0.00091217,120]
[343045323,1732309837518,-500.0,0.00091217,120]
[343045324,1732309837528,-500.0,0.00091217,120]
[343045325,1732309837537,-500.0,0.00091217,120]
[343045326,1732309837547,-500.0,0.00091217,120]
[343045327,1732309837557,-500.0,0.00091217,120]
[343045328,1732309837567,-500.0,0.00091217,120]
[343045329,1732309837577,-500.0,0.00091217,120]
[343045330,1732309837586,-500.0,0.00091217,120]
[343045331,1732309837596,-500.0,0.00091217,120]
[343045332,1732309837609,-500.0,0.00091217,120]
[343045333,1732309837619,-500.0,0.00091217,120]
[343045334,1732309837628,-500.0,0.00091217,120]
[343045335,1732309837638,-500.0,0.00091217,120]
[343045336,1732309837647,-500.0,0.00091217,120]
[343045337,1732309837656,-500.0,0.00091217,120]
[343045338,1732309837665,-500.0,0.00091217,120]
[343045339,1732309837674,-500.0,0.00091217,120]
[343045340,1732309837684,-500.0,0.00091217,120]
[343045341,1732309837693,-502.82340484,0.00091217,120]
[343045342,1732309837702,-500.0,0.00091217,120]
[343045343,1732309837712,-500.0,0.00091217,120]
[343045344,1732309837721,-500.0,0.00091217,120]
[343045345,1732309837731,-500.94683548,0.00091217,120]
[343045346,1732309837741,-501.0057241,0.00091217,120]
[343045347,1732309837751,-500.0,0.00091217,120]
[343045348,1732309837760,-500.0,0.00091217,120]
[343045349,1732309837859,-500.0,0.00091217,120]
[343045350,1732309837870,-500.0,0.00091217,120]
[343045351,1732309837879,-500.0,0.00091217,120]
[343045354,1732309837889,-500.0,0.00091217,120]
[343045356,1732309837898,-500.0,0.00091217,120]
[343045358,1732309837907,-500.0,0.00091217,120]
[343045359,1732309837917,-500.0,0.00091217,120]
[343045360,1732309837926,-500.0,0.00091217,120]
[343045361,1732309837936,-500.0,0.00091217,120]
[343045362,1732309837946,-500.0,0.00091217,120]
[343045363,1732309837957,-500.0,0.00091217,120]
[343045364,1732309837966,-500.0,0.00091217,120]
[343045365,1732309837976,-357.66110743,0.00091217,120]
[343045366,1732309837986,-500.0,0.00091217,120]
[343045367,1732309837995,-500.0,0.00091217,120]
[343045368,1732309838005,-500.0,0.00091217,120]
[343045369,1732309838014,-500.0,0.00091217,120]
[343045370,1732309838027,-500.0,0.00091217,120]
[343045371,1732309838036,-500.0,0.00091217,120]
[343045372,1732309838045,-500.85104133,0.00091217,120]
[343045373,1732309838054,-500.0,0.00091217,120]
[343045374,1732309838064,-342.29744489,0.00091217,120]
[343045375,1732309838073,-500.0,0.00091217,120]
[343045377,1732309838082,-360.65728335,0.00091217,120]
[343045378,1732309838092,-500.0,0.00091217,120]
[343045380,1732309838101,-500.0,0.00091217,120]
[343045381,1732309838112,-500.78407074,0.00091217,120]
[343045382,1732309838121,-501.90691131,0.00091217,120]
[343045383,1732309838131,-500.0,0.00091217,120]
[343045384,1732309838140,-500.0,0.00091217,120]
[343045385,1732309838150,-500.0,0.00091217,120]
[343045386,1732309838159,-500.0,0.00091217,120]
[343045387,1732309838169,-500.0,0.00091217,120]
[343045388,1732309838178,-500.0,0.00091217,120]
[343045389,1732309838198,-500.0,0.00091217,120]
[343045390,1732309838208,-500.0,0.00091217,120]
[343045391,1732309838218,-500.0,0.00091217,120]
[343045392,1732309838228,-500.84823948,0.00091217,120]
[343045393,1732309838238,-500.0,0.00091217,120]
[343045394,1732309838248,-500.0,0.00091217,120]
[343045395,1732309838258,-500.0,0.00091217,120]
[343045396,1732309838268,-500.0,0.00091217,120]
[343045397,1732309838282,-500.0,0.00091217,120]
[343045398,1732309838292,-500.0,0.00091217,120]
[343045399,1732309838301,-470.1225394,0.00091217,120]
[343045400,1732309838311,-500.0,0.00091217,120]
[343045401,1732309838321,-500.0,0.00091217,120]
[343045402,1732309838331,-413.94,0.00091217,120]
[343045403,1732309838341,-500.8820254,0.00091217,120]
[343045404,1732309838350,-500.0,0.00091217,120]
[343045405,1732309838362,-500.0,0.00091217,120]
[343045406,1732309838371,-161.26851644,0.00091217,120]
[343045407,1732309838381,-500.0,0.00091217,120]
[343045408,1732309838391,-501.03608179,0.00091217,120]
[343045409,1732309838401,-500.0,0.00091217,120]
[343045410,1732309838411,-500.0,0.00091217,120]
[343045411,1732309838421,-500.0,0.00091217,120]
[343045412,1732309838431,-502.26788712,0.00091217,120]
[343045413,1732309838440,-500.75005236,0.00091217,120]
[343045414,1732309838450,-500.0,0.00091217,120]
[343045415,1732309838460,-500.0,0.00091217,120]
[343045416,1732309838470,-500.0,0.00091217,120]
[343045417,1732309838480,-500.0,0.00091217,120]
[343045418,1732309838490,-500.97182646,0.00091217,120]
[343045419,1732309838500,-500.0,0.00091217,120]
[343045420,1732309838510,-500.0,0.00091217,120]
[343045421,1732309838520,-500.0,0.00091217,120]
[343045422,1732309838530,-500.0,0.00091217,120]
[343045423,1732309838540,-500.0,0.00091217,120]
[343045424,1732309838550,-500.92647148,0.00091217,120]
[343045425,1732309838560,-500.0,0.00091217,120]
[343045426,1732309838570,-500.0,0.00091217,120]
[343045427,1732309838580,-500.0,0.00091217,120]
[343045428,1732309838590,-500.81870199,0.00091217,120]
[343045429,1732309838600,-500.0,0.00091217,120]
[343045430,1732309838611,-500.0,0.00091217,120]
[343045431,1732309838620,-500.0,0.00091217,120]
[343045432,1732309838630,-500.0,0.00091217,120]
[343045434,1732309838641,-500.0,0.00091217,120]
[343045436,1732309838651,-500.0,0.00091217,120]
[343045438,1732309838661,-500.0,0.00091217,120]
[343045440,1732309838670,-500.0,0.00091217,120]
[343045442,1732309838680,-500.0,0.00091217,120]
[343045443,1732309838689,-500.0,0.00091217,120]
[343045445,1732309838699,-500.0,0.00091217,120]
[343045446,1732309838709,-500.47063322,0.00091217,120]
[343045447,1732309838718,-232.1,0.00091217,120]
[343045448,1732309838727,-500.0,0.00091217,120]
[343045449,1732309838738,-500.0,0.00091217,120]
[343045450,1732309838748,-500.0,0.00091217,120]
[343045452,1732309838758,-500.0,0.00091217,120]
[343045453,1732309838768,-500.0,0.00091217,120]
[343045454,1732309838778,-500.0,0.00091217,120]
[343045455,1732309838788,-500.0,0.00091217,120]
[343045456,1732309838798,-500.0,0.00091217,120]
[343045457,1732309838808,-500.0,0.00091217,120]
[343045458,1732309838818,-500.00168937,0.00091217,120]
[343045459,1732309838827,-500.0,0.00091217,120]
[343045461,1732309838836,-500.0,0.00091217,120]
[343045463,1732309838846,-502.07165823,0.00091217,120]
[343045465,1732309838856,-500.0,0.00091217,120]
[343045466,1732309838865,-500.81363638,0.00091217,120]
[343045467,1732309838874,-500.0,0.00091217,120]
[343045468,1732309838884,-590.32,0.00091217,120]
[343045469,1732309838893,-500.0,0.00091217,120]
[343045470,1732309838902,-500.0,0.00091217,120]
[343045471,1732309838911,-500.0,0.00091217,120]
[343045472,1732309838920,-501.19951018,0.00091217,120]
[343045473,1732309838930,-500.0,0.00091217,120]
[343045474,1732309838940,-500.0,0.00091217,120]
[343045475,1732309838952,-500.0,0.00091217,120]
[343045476,1732309838961,-500.0,0.00091217,120]
[343045477,1732309838970,-500.0,0.00091217,120]
[343045478,1732309838979,-500.0,0.00091217,120]
[343045479,1732309838990,-500.0,0.00091217,120]
[343045480,1732309839000,-500.0,0.00091217,120]
[343045481,1732309839009,-500.0,0.00091217,120]
[343045482,1732309839020,-500.0,0.00091217,120]
[343045483,1732309839031,-500.0,0.00091217,120]
[343045484,1732309839040,-500.0,0.00091217,120]
[343045485,1732309839049,-500.0,0.00091217,120]
[343045486,1732309839059,-500.0,0.00091217,120]
[343045487,1732309839068,-500.0,0.00091217,120]
[343045488,1732309839078,-500.0,0.00091217,120]
[343045489,1732309839088,-500.0,0.00091217,120]
[343045490,1732309839098,-500.0,0.00091217,120]
[343045491,1732309839110,-500.0,0.00091217,120]
[343045492,1732309839120,-500.0,0.00091217,120]
[343045493,1732309839130,-500.0,0.00091217,120]
[343045494,1732309839140,-500.0,0.00091217,120]
[343045495,1732309839149,-500.0,0.00091217,120]
[343045496,1732309839158,-500.0,0.00091217,120]
[343045497,1732309839167,-500.0,0.00091217,120]
[343045498,1732309839176,-500.0,0.00091217,120]
[343045499,1732309839185,-500.0,0.00091217,120]
[343045500,1732309839195,-500.0,0.00091217,120]
[343045501,1732309839204,-500.0,0.00091217,120]
[343045502,1732309839213,-500.0,0.00091217,120]
[343045503,1732309839222,-500.0,0.00091217,120]
[343045504,1732309839232,-500.0,0.00091217,120]
[343045505,1732309839241,-500.0,0.00091217,120]
[343045506,1732309839251,-500.0,0.00091217,120]
[343045507,1732309839261,-500.0,0.00091217,120]
[343045508,1732309839271,-500.0,0.00091217,120]
[343045509,1732309839280,-500.0,0.00091217,120]
[343045510,1732309839290,-500.0,0.00091217,120]
[343045511,1732309839300,-500.0,0.00091217,120]
[343045512,1732309839309,-500.0,0.00091217,120]
[343045513,1732309839319,-500.0,0.00091217,120]
[343045514,1732309839329,-500.0,0.00091217,120]
[343045515,1732309839338,-500.0,0.00091217,120]
[343045516,1732309839348,-500.0,0.00091217,120]
[343045517,1732309839359,-500.0,0.00091217,120]
[343045518,1732309839369,-500.0,0.00091217,120]
[343045519,1732309839379,-500.0,0.00091217,120]
[343045520,1732309839388,-579.26896148,0.00091217,120]
[343045521,1732309839398,-500.0,0.00091217,120]
[343045522,1732309839408,-500.0,0.00091217,120]
[343045523,1732309839417,-499.68611315,0.00091217,120]
[343045524,1732309839427,-537.13023649,0.00091217,120]
[343045525,1732309839437,-495.42326107,0.00091217,120]
[343045526,1732309839447,-500.0,0.00091217,120]
[343045527,1732309839456,-500.0,0.00091217,120]
[343045528,1732309839466,-500.0,0.00091217,120]
[343045529,1732309839475,-543.62229254,0.00091217,120]
[343045530,1732309839485,-500.0,0.00091217,120]
[343045531,1732309839494,-500.0,0.00091217,120]
[343045532,1732309839503,-500.0,0.00091217,120]
[343045533,1732309839513,-500.0,0.00091217,120]